fUSD/lending_fUSD_20240518
["ID","MTS","AMOUNT","RATE_DAILY","PERIOD"]
[327426064,1716067833679,-1501.57922295,0.00024988,2]
[327426065,1716067833694,-1033.7,0.00024988,2]
[327426066,1716067833705,-3990.39052706,0.00024988,2]
[327426089,1716067838344,-183.05942095,0.00024976,2]
[327426090,1716067838353,-4886.27395901,0.00024988,2]
[327426117,1716067840461,-15228.74999999,0.00024988,2]
[327426119,1716067840473,-363.98568217,0.00024988,2]
[327426133,1716067840609,-2023.05615318,0.00024988,2]
[327426215,1716067843381,-7165.12072679,0.00024988,2]
[327426216,1716067843429,-177995.31261937,0.00024988,2]
[327426217,1716067843439,-3352.27716153,0.00024988,2]
[327426218,1716067843448,-19726.32390068,0.00024988,2]
[327426219,1716067843458,-500.0,0.00024988,2]
[327426220,1716067843467,-200.0,0.00024988,2]
[327426221,1716067843476,-3000.0,0.00024988,2]
[327426222,1716067843485,-816.0,0.0002499,2]
[327426223,1716067843496,-410048.42564437,0.0002499,7]
[327426224,1716067843505,-301.2409703,0.0002499,2]
[327426225,1716067843514,-150.0,0.00024999,2]
[327426226,1716067843524,-230.9764503,0.00024999,2]
[327426227,1716067843534,-17388.69743801,0.00025,2]
[327426228,1716067843545,-320.96907587,0.00025,2]
[327426229,1716067843556,-20261.95515799,0.00025,2]
[327426230,1716067843614,-289489.64713443,0.00025,2]
[327426231,1716067843627,-1340.0,0.00025,2]
[327426248,1716067846223,-415.7195867,0.00024463,2]
[327426253,1716067846270,-1144.33041334,0.00024463,2]
[327426254,1716067846280,-1937.95558666,0.00025,2]
[327426255,1716067846318,-585.22668101,0.00025,2]
[327426256,1716067846369,-2055.95637963,0.00025,2]
[327426257,1716067846522,-163527.618349,0.00025,2]
[327426258,1716068144380,150.0,0.0001118,2]
[327426259,1716068144401,150.0,0.0001118,2]
[327426260,1716068144422,150.0,0.0001118,2]
[327426261,1716068144443,150.0,0.0001118,2]
[327426262,1716068144464,150.0,0.0001118,2]
[327426263,1716068144486,150.0,0.0001118,2]
[327426264,1716068144508,150.0,0.0001118,2]
[327426265,1716068144530,150.0,0.0001118,2]
[327426266,1716068144552,150.0,0.0001118,2]
[327426267,1716068144574,150.0,0.0001118,2]
[327426268,1716068144600,6888.37171409,0.0001118,2]
[327426269,1716068144624,51028.21281997,0.0001118,2]
[327426270,1716068148057,5369.0895753,0.0003,90]
[327426272,1716068721830,2000.0,0.0002,15]
[327426294,1716069031425,-300.0,0.00017159,2]
[327426296,1716069031434,-150.0,0.00019725,2]
[327426297,1716069031443,-150.0,0.00019725,2]
[327426298,1716069031453,-186.20394394,0.0002,2]
[327426299,1716069031803,-313.79605606,0.0002,2]
[327426300,1716069031813,-155.0,0.00020749,2]
[327426301,1716069031823,-159.93,0.0002075,2]
[327426302,1716069031833,-819.045632,0.00022188,2]
[327426303,1716069031843,-277.0,0.000223,2]
[327426304,1716069031852,-342.49,0.000223,2]
[327426306,1716069031861,-200.0,0.0002234,2]
[327426307,1716069031870,-250.0,0.00022407,2]
[327426308,1716069031880,-216.61,0.00022411,2]
[327426309,1716069031894,-175.59,0.00022456,2]
[327426310,1716069031903,-1890.53831194,0.00022486,2]
[327426312,1716069031915,-2418.1409,0.00022486,2]
[327426337,1716069037742,-103.56078806,0.00022486,2]
[327426338,1716069037751,-1290.1,0.00022564,2]
[327426339,1716069037761,-187.4,0.00022618,2]
[327426340,1716069037770,-299.43,0.0002264,2]
[327426341,1716069037780,-1016.4363,0.00022826,2]
[327426342,1716069037790,-150.0,0.00022904,2]
[327426343,1716069037799,-11968.67166038,0.00022926,2]
[327426344,1716069037811,-1054.13833962,0.00022926,2]
[327426345,1716069037820,-600.06,0.00023069,2]
[327426346,1716069037830,-277.0,0.0002308,2]
[327426347,1716069037839,-1322.0,0.000232,2]
[327426348,1716069037849,-1000.0,0.000232,2]
[327426349,1716069037858,-384.0,0.00023201,2]
[327426350,1716069037868,-1000.0,0.000237,2]
[327426351,1716069037877,-277.0,0.0002385,2]
[327426352,1716069037888,-151.37,0.00024343,2]
[327426353,1716069037900,-175.59,0.0002447,2]
[327426354,1716069037909,-277.0,0.0002462,2]
[327426355,1716069037919,-250.0,0.00024658,2]
[327426356,1716069037928,-70000.0,0.000248,3]
[327426357,1716069037939,-2500.0,0.000248,2]
[327426358,1716069037949,-73012.1569,0.00024899,2]
[327426359,1716069037958,-1000.0,0.00024899,2]
[327426360,1716069037968,-500.0,0.00024899,2]
[327426361,1716069037978,-7500.0,0.00024899,2]
[327426362,1716069037988,-10000.0,0.000249,2]
[327426363,1716069037998,-5998.98751527,0.000249,2]
[327426364,1716069038010,-319.077,0.000249,2]
[327426367,1716069039600,-3419.81891121,0.000249,2]
[327426368,1716069039611,-2059.61272198,0.000249,2]
[327426369,1716069039620,-547.70836681,0.000249,2]
[327426370,1716069039766,-1511.90435517,0.000249,2]
[327426371,1716069039776,-465.11385483,0.000249,2]
[327426372,1716069040052,-1451.8542977,0.000249,2]
[327426377,1716069042581,-142.64456945,0.000249,2]
[327426379,1716069042592,-2059.61272198,0.000249,2]
[327426381,1716069042601,-2059.61272198,0.000249,2]
[327426382,1716069042610,-2059.61272198,0.000249,2]
[327426383,1716069042620,-2059.61272198,0.000249,2]
[327426384,1716069042630,-968.5199,0.000249,2]
[327426385,1716069042639,-2059.61272198,0.000249,2]
[327426386,1716069042649,-2059.61272198,0.000249,2]
[327426387,1716069042659,-2059.61272198,0.000249,2]
[327426388,1716069042669,-2059.61272198,0.000249,2]
[327426389,1716069042678,-2059.61272198,0.000249,2]
[327426390,1716069042688,-449.61222968,0.000249,2]
[327426391,1716069042697,-337.00402698,0.000249,2]
[327426392,1716069042707,-201.28727559,0.000249,2]
[327426393,1716069042717,-500.22706732,0.00024988,2]
[327426394,1716069042726,-2015.93078413,0.00024988,2]
[327426395,1716069042736,-1370.1766084,0.00024989,2]
[327426396,1716069042745,-202.11,0.0002499,15]
[327426397,1716069042755,-325.76293882,0.00024998,2]
[327426398,1716069042765,-162.50319315,0.00024998,2]
[327426399,1716069042774,-2220.58096225,0.00024999,7]
[327426400,1716069042784,-155.0,0.00024999,2]
[327426401,1716069042794,-150.01,0.00024999,2]
[327426402,1716069042804,-4978.2022603,0.00024999,2]
[327426403,1716069042813,-294409.32610182,0.00024999,2]
[327426404,1716069042946,-17003.17041859,0.00024999,2]
[327426416,1716069045599,-466.14550299,0.00024999,2]
[327426417,1716069045769,-12913.22348356,0.00024999,2]
[327426418,1716069045783,-23973.3491015,0.00024999,2]
[327426419,1716069045828,-4889.50320945,0.00024999,2]
[327426444,1716069810817,150.0,0.00029541,120]
[327426462,1716070231760,-156.54,0.00013973,2]
[327426463,1716070231769,-150.0,0.00019451,2]
[327426464,1716070231783,-101.41077452,0.0002,2]
[327426465,1716070231795,-670.78694448,0.0002,2]
[327426466,1716070231826,-618.46,0.0002,2]
[327426467,1716070231838,-741.342281,0.0002,2]
[327426468,1716070231847,-159.93,0.00020178,2]
[327426469,1716070231858,-210.0,0.00021396,2]
[327426470,1716070231868,-102.68398368,0.00022117,2]
[327426471,1716070231880,-377.35601632,0.00022117,2]
[327426472,1716070231889,-175.59,0.00022135,2]
[327426473,1716070231898,-716.10932836,0.00022168,2]
[327426474,1716070232012,-20832.33067164,0.00022168,2]
[327426475,1716070232022,-244.31,0.00022177,2]
[327426476,1716070232031,-702.08,0.00022177,2]
[327426477,1716070232041,-311.93,0.00022259,2]
[327426478,1716070232050,-357.69,0.0002235,2]
[327426479,1716070232059,-2335.81,0.00022387,2]
[327426480,1716070232069,-250.0,0.00022402,2]
[327426481,1716070232078,-95.65565318,0.00022423,2]
[327426482,1716070232089,-330.79,0.00022423,2]
[327426483,1716070232101,-1905.75434682,0.00022423,2]
[327426484,1716070232110,-2000.0,0.00022425,3]
[327426485,1716070232120,-907.2,0.00022441,2]
[327426486,1716070232130,-163.99,0.00022458,2]
[327426487,1716070232139,-11005.18109864,0.00022469,2]
[327426490,1716070232350,-4432.93862018,0.00022479,2]
[327426492,1716070232363,-1731.04433515,0.00022479,2]
[327426494,1716070232375,-836.31764431,0.00022479,2]
[327426496,1716070232385,-412.90078624,0.00022479,2]
[327426497,1716070232396,-324.10000261,0.00022479,2]
[327426500,1716070232408,-496.29675969,0.00022479,2]
[327426501,1716070232419,-1248.19185182,0.00022479,2]
[327426502,1716070232428,-4745.28,0.00022488,2]
[327426503,1716070232437,-154.59,0.00022792,2]
[327426504,1716070232446,-154.59,0.00022801,2]
[327426505,1716070232455,-154.59,0.00022811,2]
[327426506,1716070232464,-154.59,0.0002282,2]
[327426507,1716070232473,-154.59,0.0002283,2]
[327426508,1716070232483,-154.59,0.00022839,2]
[327426509,1716070232491,-154.59,0.00022849,2]
[327426510,1716070232500,-154.59,0.00022858,2]
[327426511,1716070232509,-154.59,0.00022868,2]
[327426512,1716070232518,-154.59,0.00022877,2]
[327426513,1716070232527,-154.59,0.00022887,2]
[327426514,1716070232537,-154.59,0.00022896,2]
[327426515,1716070232546,-154.59,0.00022906,2]
[327426516,1716070232555,-293.0,0.00023536,2]
[327426517,1716070232564,-164.52,0.0002372,2]
[327426518,1716070232573,-250.0,0.00024658,2]
[327426519,1716070232582,-1000.0,0.00024799,2]
[327426520,1716070232591,-715.6361,0.00024799,2]
[327426521,1716070232600,-500.0,0.000248,2]
[327426522,1716070232609,-200.0,0.000248,2]
[327426523,1716070232620,-480.04,0.00024881,2]
[327426524,1716070232629,-181.63829139,0.00024898,7]
[327426525,1716070232638,-827.3928,0.00024898,2]
[327426526,1716070232647,-2350.58751679,0.000249,2]
[327426527,1716070232659,-7649.41248321,0.000249,2]
[327426528,1716070232667,-161.6624709,0.000249,2]
[327426529,1716070232676,-978.18796677,0.000249,4]
[327426530,1716070232685,-978.18796677,0.000249,4]
[327426531,1716070232695,-192.98403951,0.000249,2]
[327426532,1716070232704,-5595.00296284,0.000249,2]
[327426533,1716070232715,-584.31,0.000249,2]
[327426534,1716070232726,-296.53135641,0.000249,2]
[327426535,1716070232737,-315.0,0.000249,2]
[327426536,1716070232748,-709.15568075,0.000249,2]
[327426537,1716070232757,-9312.8387044,0.000249,2]
[327426538,1716070232767,-719.3795675,0.000249,2]
[327426539,1716070232782,-823.84508891,0.000249,2]
[327426540,1716070232791,-823.84508879,0.000249,2]
[327426541,1716070232801,-823.84508879,0.000249,2]
[327426542,1716070232810,-823.84508879,0.000249,2]
[327426543,1716070232823,-823.84508879,0.000249,2]
[327426544,1716070232832,-823.84508879,0.000249,2]
[327426545,1716070232841,-823.84508879,0.000249,2]
[327426546,1716070232852,-823.84508879,0.000249,2]
[327426547,1716070232861,-823.84508879,0.000249,2]
[327426548,1716070232871,-823.84508879,0.000249,2]
[327426549,1716070232880,-823.84508879,0.000249,2]
[327426550,1716070232889,-823.84508879,0.000249,2]
[327426551,1716070232899,-823.84508879,0.000249,2]
[327426552,1716070232908,-201.28727559,0.000249,2]
[327426553,1716070232917,-823.84508879,0.000249,2]
[327426554,1716070232926,-823.84508879,0.000249,2]
[327426555,1716070232935,-823.84508879,0.000249,2]
[327426556,1716070232944,-823.84508879,0.000249,2]
[327426557,1716070232954,-823.84508879,0.000249,2]
[327426558,1716070232964,-224.66935132,0.000249,2]
[327426559,1716070232973,-823.84508879,0.000249,2]
[327426560,1716070232982,-823.84508879,0.000249,2]
[327426561,1716070232992,-3042.43095721,0.0002499,10]
[327426562,1716070233002,-405.80972008,0.00024998,2]
[327426563,1716070233011,-155.24241743,0.00024998,2]
[327426564,1716070233021,-1534.23842762,0.00024998,2]
[327426565,1716070233032,-506.17401671,0.00024998,2]
[327426566,1716070233042,-196.3970393,0.00024998,2]
[327426567,1716070233051,-377.89293188,0.00024998,2]
[327426568,1716070233060,-191.00288657,0.00024998,2]
[327426569,1716070233072,-261.30441343,0.00024998,2]
[327426570,1716070233081,-90.37932668,0.00024998,2]
[327426578,1716070237824,-289.35868279,0.00024998,2]
[327426579,1716070237834,-278.45769739,0.00024998,2]
[327426580,1716070237844,-204.7855615,0.00024998,2]
[327426581,1716070237855,-155.0,0.00024998,2]
[327426582,1716070237864,-17.80318234,0.00024998,3]
[327426583,1716070237888,-137.19681766,0.00024998,3]
[327426584,1716070237898,-155.0,0.00024998,2]
[327426585,1716070237907,-2448.86357867,0.00024998,2]
[327426586,1716070237918,-4006.7037361,0.00024998,2]
[327426587,1716070237951,-4785.4828763,0.00024998,2]
[327426588,1716070237960,-9443.91665822,0.00024999,2]
[327426589,1716070238022,-3140.10265864,0.00024999,2]
[327426590,1716070238096,-484.0,0.000249,2]
[327426599,1716070239925,-281.44621981,0.000249,2]
[327426600,1716070239935,-7632.22226606,0.00024999,2]
[327426601,1716070239948,-977.67046052,0.00024999,2]
[327426602,1716070240142,-955.45418557,0.00024999,2]
[327426603,1716070240154,-26618.15601965,0.00024999,2]
[327426604,1716070240164,-207.77106734,0.00024999,2]
[327426605,1716070240174,-298.78407833,0.00024999,2]
[327426606,1716070240184,-2044.06623565,0.00024999,2]
[327426607,1716070240195,-3000.0,0.00024999,2]
[327426608,1716070240204,-150.0,0.00024999,2]
[327426609,1716070240214,-150.0,0.00024999,2]
[327426610,1716070240224,-3953.63290483,0.00025,2]
[327426611,1716070240346,-337.3518643,0.00025,2]
[327426612,1716070240357,-508.21703633,0.00025,2]
[327426613,1716070240369,-3464.51519998,0.00025,2]
[327426635,1716070242983,-1565.88293792,0.0002406,2]
[327426636,1716070242992,-7445.24963627,0.000249,2]
[327426637,1716070243281,-54.75036373,0.000249,2]
[327426638,1716070243290,-497.12233627,0.00025,2]
[327426639,1716070245720,-641.347,0.00025,2]
[327426640,1716070245732,-375.93228978,0.00025,2]
[327426641,1716070245744,-45922.40855999,0.00025,2]
[327426642,1716070245936,-983.86902031,0.00025,2]
[327426643,1716070245948,-15176.65673947,0.00025,2]
[327426644,1716070245961,-1332.64491383,0.00025,2]
[327426645,1716070245972,-1584.74568195,0.00025,2]
[327426646,1716070245983,-1362.1224446,0.00025,2]
[327426647,1716070245994,-61329.4634206,0.00025,2]
[327426648,1716070246006,-1232.59825842,0.00025,2]
[327426649,1716070246021,-360.44824083,0.00025,2]
[327426650,1716070246032,-502.13752266,0.00025,2]
[327426651,1716070246043,-6840.63747288,0.00025,2]
[327426652,1716070535513,173.41,0.00026448,120]
[327426653,1716070760914,152.07065122,0.0003,90]
[327426671,1716071431917,-155.0,0.00016018,2]
[327426672,1716071431926,-194.97199603,0.00016019,2]
[327426673,1716071431936,-83.71046617,0.0001602,2]
[327426674,1716071431949,-71.28953383,0.0001602,2]
[327426675,1716071431958,-244.89766767,0.00016022,2]
[327426676,1716071431966,-122.76086673,0.00016022,2]
[327426677,1716071431977,-36.87727489,0.00016022,2]
[327426678,1716071431986,-385.88587457,0.00016122,2]
[327426679,1716071431997,-2478.29101073,0.00016122,2]
[327426680,1716071432008,-556.70320369,0.00016122,2]
[327426681,1716071432019,-569.99999994,0.00016122,2]
[327426682,1716071432029,-351.899999,0.00016122,2]
[327426683,1716071432040,-657.21991207,0.00016122,2]
[327426684,1716071432049,-721.96718528,0.00016434,2]
[327426685,1716071432058,-440.63333738,0.00016647,2]
[327426686,1716071432067,-436.16,0.00016648,2]
[327426687,1716071432076,-248.44,0.00016648,2]
[327426688,1716071432085,-367.72308763,0.00016648,2]
[327426689,1716071432096,-1986.52941237,0.00016648,2]
[327426690,1716071432106,-241.51,0.00016855,2]
[327426691,1716071432115,-541.11,0.00017159,2]
[327426692,1716071432124,-173.54063752,0.00018747,2]
[327426693,1716071432136,-630.81393906,0.00018747,2]
[327426694,1716071432146,-159.63814161,0.00018981,2]
[327426695,1716071432155,-151.85497677,0.0002,2]
[327426696,1716071432166,-580.14502323,0.0002,2]
[327426697,1716071432175,-159.93,0.00020507,2]
[327426698,1716071432185,-159.63814161,0.00021939,2]
[327426699,1716071432194,-164.52,0.00021964,2]
[327426700,1716071432203,-169.48824271,0.00022028,2]
[327426701,1716071432221,-80.51175729,0.00022028,2]
[327426702,1716071432231,-711.97,0.00022262,2]
[327426703,1716071432240,-4771.03947649,0.00022326,2]
[327426704,1716071432250,-3813.17988348,0.00022326,2]
[327426705,1716071432262,-604.08169236,0.00022326,2]
[327426706,1716071432322,-1119.80783631,0.00022326,2]
[327426707,1716071432333,-7857.09111136,0.00022326,2]
[327426708,1716071432342,-2891.03,0.00022333,2]
[327426709,1716071432351,-781.82,0.00022403,2]
[327426710,1716071432360,-1507.74,0.00022532,2]
[327426711,1716071432373,-150.0,0.00022618,2]
[327426712,1716071432383,-173.41,0.0002267,2]
[327426713,1716071432392,-160.87,0.0002356,2]
[327426714,1716071432400,-160.87,0.00023575,2]
[327426715,1716071432411,-160.87,0.00023589,2]
[327426716,1716071432420,-160.87,0.00023604,2]
[327426717,1716071432429,-160.87,0.00023619,2]
[327426718,1716071432439,-160.87,0.00023634,2]
[327426719,1716071432451,-160.87,0.00023648,2]
[327426720,1716071432461,-160.87,0.00023663,2]
[327426721,1716071432470,-160.87,0.00023678,2]
[327426722,1716071432479,-3782.92829112,0.00024,2]
[327426723,1716071432492,-521.97670531,0.00024,2]
[327426724,1716071432503,-967.82884568,0.00024,2]
[327426725,1716071432515,-1127.26615789,0.00024,2]
[327426726,1716071432525,-173.59,0.00024108,2]
[327426727,1716071432535,-180.0,0.00024265,2]
[327426728,1716071432544,-250.0,0.00024658,2]
[327426729,1716071432554,-1225.0,0.00024659,2]
[327426730,1716071432563,-1642.0,0.00024659,2]
[327426731,1716071432572,-671.823,0.00024659,2]
[327426732,1716071432581,-1262.0,0.00024659,2]
[327426733,1716071432590,-312.787,0.00024659,2]
[327426734,1716071432599,-444.0,0.00024659,2]
[327426735,1716071432608,-439.0,0.00024659,2]
[327426736,1716071432620,-809.0,0.00024659,2]
[327426737,1716071432630,-612.0,0.00024659,2]
[327426738,1716071432639,-150.0,0.00024659,2]
[327426739,1716071432648,-150.0,0.00024659,2]
[327426740,1716071432657,-773.07398785,0.00024659,2]
[327426741,1716071432669,-873.92601215,0.00024659,2]
[327426742,1716071432678,-1486.4278633,0.00024659,2]
[327426743,1716071432691,-490.5721367,0.00024659,2]
[327426744,1716071432700,-3159.0,0.00024659,2]
[327426745,1716071432709,-215.0,0.00024659,2]
[327426746,1716071432719,-1137.0,0.00024659,2]
[327426747,1716071432728,-5915.0,0.00024659,2]
[327426748,1716071432738,-5915.0,0.00024659,2]
[327426749,1716071432748,-481.84560442,0.00024659,2]
[327426750,1716071432759,-725.86856105,0.00024659,2]
[327426751,1716071432770,-560.2023371,0.00024659,2]
[327426752,1716071432784,-479.17421262,0.00024659,2]
[327426753,1716071432795,-979.38,0.00024659,2]
[327426754,1716071432817,-752.35031756,0.00024659,2]
[327426755,1716071432828,-1775.17896725,0.00024659,2]
[327426756,1716071432837,-1003.92097487,0.00024659,2]
[327426757,1716071432848,-297.182565,0.00024659,2]
[327426758,1716071432874,-162.89646013,0.00024659,2]
[327426759,1716071432884,-289.0,0.00024659,2]
[327426760,1716071432894,-37862.0,0.00024659,2]
[327426761,1716071432903,-973.0,0.00024659,2]
[327426762,1716071432913,-2159.0,0.00024659,2]
[327426763,1716071432922,-252.19620887,0.00024746,2]
[327426764,1716071432931,-277.68288652,0.0002475,2]
[327426765,1716071432941,-158.76,0.0002479,3]
[327426766,1716071432950,-476.33,0.0002479,3]
[327426767,1716071432959,-200.0,0.00024799,2]
[327426768,1716071432968,-1000.0,0.00024799,2]
[327426769,1716071432977,-200.0,0.00024799,2]
[327426770,1716071432987,-500.0,0.00024799,2]
[327426771,1716071432996,-200.0,0.00024799,2]
[327426772,1716071433005,-1000.0,0.00024799,2]
[327426773,1716071433015,-500.0,0.000248,2]
[327426774,1716071433024,-1000.0,0.000248,2]
[327426775,1716071433033,-200.0,0.000248,2]
[327426776,1716071433043,-200.0,0.000248,2]
[327426777,1716071433052,-1000.0,0.000248,2]
[327426778,1716071433061,-1000.0,0.000248,2]
[327426779,1716071433071,-1000.0,0.000248,2]
[327426780,1716071433080,-200.0,0.000248,2]
[327426781,1716071433089,-200.0,0.000248,2]
[327426782,1716071433099,-500.0,0.000248,2]
[327426783,1716071433109,-500.0,0.000248,2]
[327426784,1716071433118,-200.0,0.000248,2]
[327426785,1716071433127,-1000.0,0.000248,2]
[327426786,1716071433136,-1000.0,0.000248,2]
[327426787,1716071433146,-1000.0,0.000248,2]
[327426788,1716071433155,-1000.0,0.000248,2]
[327426789,1716071433166,-1000.0,0.000248,2]
[327426790,1716071433175,-1000.0,0.000248,2]
[327426792,1716071433185,-1000.0,0.000248,2]
[327426793,1716071433194,-1000.0,0.000248,2]
[327426794,1716071433205,-1000.0,0.000248,2]
[327426795,1716071433214,-1000.0,0.000248,2]
[327426796,1716071433223,-1000.0,0.000248,2]
[327426797,1716071433234,-1000.0,0.000248,2]
[327426798,1716071433245,-1000.0,0.000248,2]
[327426799,1716071433254,-1000.0,0.000248,2]
[327426800,1716071433263,-1000.0,0.000248,2]
[327426801,1716071433272,-1000.0,0.000248,2]
[327426802,1716071433282,-1000.0,0.000248,2]
[327426803,1716071433291,-1000.0,0.000248,2]
[327426804,1716071433300,-1000.0,0.000248,2]
[327426805,1716071433310,-1000.0,0.000248,2]
[327426806,1716071433320,-1000.0,0.000248,2]
[327426807,1716071433331,-1000.0,0.000248,2]
[327426808,1716071433342,-445.0,0.000248,2]
[327426809,1716071433351,-1563.06983317,0.00024823,2]
[327426810,1716071433360,-160.37357787,0.00024898,2]
[327426811,1716071433372,-773.98091568,0.00024898,2]
[327426812,1716071433382,-159.63814161,0.00024898,2]
[327426813,1716071433392,-7500.0,0.00024898,2]
[327426814,1716071433401,-160.37357787,0.00024899,2]
[327426815,1716071433411,-1024.5636,0.00024899,2]
[327426816,1716071433421,-257.207,0.00024899,2]
[327426817,1716071433431,-160.37357787,0.00024899,2]
[327426818,1716071433440,-773.98091568,0.00024899,2]
[327426819,1716071433452,-160.37357787,0.000249,2]
[327426820,1716071433462,-3662.1867,0.000249,2]
[327426821,1716071433472,-161.6624709,0.000249,2]
[327426822,1716071433482,-178.8807297,0.000249,2]
[327426823,1716071433492,-160.37357787,0.000249,2]
[327426824,1716071433501,-773.98091568,0.000249,2]
[327426825,1716071433511,-2587.21977296,0.000249,2]
[327426826,1716071433520,-15570.07806607,0.000249,2]
[327426827,1716071433530,-876.43,0.00024959,2]
[327426828,1716071433540,-4594.27005244,0.00024976,2]
[327426829,1716071433550,-154.27,0.0002498,15]
[327426830,1716071433561,-171.18644596,0.00024988,2]
[327426831,1716071433570,-150.5,0.0002499,15]
[327426832,1716071433580,-171.18644596,0.0002499,2]
[327426833,1716071433589,-171.18644596,0.0002499,2]
[327426834,1716071433599,-409.94933149,0.00024996,2]
[327426835,1716071433608,-1000.0,0.00024996,2]
[327426836,1716071433618,-200.32952515,0.00024996,2]
[327426837,1716071433627,-504.95866722,0.00024996,2]
[327426838,1716071433637,-633.53029662,0.00024996,2]
[327426839,1716071433647,-192.94622587,0.00024996,2]
[327426840,1716071433656,-300.0,0.00024996,2]
[327426841,1716071433666,-292.59685848,0.00024997,2]
[327426842,1716071433675,-566.18248955,0.00024997,2]
[327426843,1716071433685,-1689.24335302,0.00024997,2]
[327426844,1716071433694,-157.051907,0.00024997,2]
[327426845,1716071433704,-157.051907,0.00024997,2]
[327426846,1716071433713,-157.051907,0.00024997,2]
[327426847,1716071433724,-157.051907,0.00024997,2]
[327426848,1716071433735,-157.051907,0.00024997,2]
[327426849,1716071433746,-157.051907,0.00024997,2]
[327426850,1716071433755,-441.4070949,0.00024998,2]
[327426851,1716071433765,-405.80972008,0.00024998,2]
[327426852,1716071433774,-1247.87118364,0.00024998,2]
[327426853,1716071433783,-217.44746409,0.00024998,2]
[327426854,1716071433792,-2184.52280122,0.00024998,2]
[327426855,1716071433802,-204.44716233,0.00024998,2]
[327426856,1716071433811,-7508.65350991,0.00024998,2]
[327426857,1716071433820,-155.0674089,0.00024998,2]
[327426858,1716071433830,-1206.14494,0.00024998,2]
[327426859,1716071433839,-207.23404543,0.00024998,2]
[327426860,1716071433848,-326.47360097,0.00024998,2]
[327426861,1716071433859,-155.0,0.00024998,2]
[327426862,1716071433868,-155.0,0.00024998,2]
[327426863,1716071433878,-155.0,0.00024998,2]
[327426864,1716071433888,-209.43798206,0.00024998,2]
[327426865,1716071433898,-162.50319315,0.00024998,2]
[327426866,1716071433907,-19893.45957982,0.00024998,2]
[327426867,1716071433918,-317.63013013,0.00024998,2]
[327426868,1716071433927,-522.95913528,0.00024998,2]
[327426869,1716071433938,-240341.93519247,0.00024998,2]
[327426870,1716071433948,-157.051907,0.00024998,2]
[327426871,1716071433958,-157.051907,0.00024998,2]
[327426872,1716071433967,-157.051907,0.00024998,2]
[327426873,1716071433976,-157.051907,0.00024998,2]
[327426874,1716071433986,-157.051907,0.00024998,2]
[327426875,1716071433995,-157.051907,0.00024998,2]
[327426876,1716071434004,-468585.2707565,0.00024998,2]
[327426877,1716071434014,-1130.02004929,0.00024998,2]
[327426878,1716071434180,-3535.62592933,0.00024998,2]
[327426879,1716071434194,-2719.05049637,0.00024998,2]
[327426886,1716071437983,-4961.87372871,0.00024998,2]
[327426888,1716071437992,-157.051907,0.00024999,2]
[327426890,1716071438002,-157.051907,0.00024999,2]
[327426892,1716071438011,-18.78175635,0.00024999,2]
[327426894,1716071438023,-138.27015065,0.00024999,2]
[327426896,1716071438032,-157.051907,0.00024999,2]
[327426898,1716071438041,-157.051907,0.00024999,2]
[327426900,1716071438050,-157.051907,0.00024999,2]
[327426902,1716071438059,-6.57412835,0.00024999,2]
[327426923,1716071438315,-143.42587165,0.00024999,2]
[327426924,1716071438325,-150.0,0.00024999,2]
[327426925,1716071438335,-150.0,0.00024999,2]
[327426926,1716071438344,-150.0,0.00024999,2]
[327426927,1716071438354,-150.0,0.00024999,2]
[327426928,1716071438363,-150.0,0.00024999,2]
[327426929,1716071438378,-732.0,0.00025,2]
[327426930,1716071438388,-15199.37606247,0.00025,2]